Cogmind - Beta 12 @@@ ROGUE MODE // 2023.03.09 @ 19:57:18 Player: SilentMoose Result: Destroyed by S-27 Virus with Autogun Performance ------------- Evolutions (5) 2500 Regions Visited (9) 1800 Robots Destroyed (12) 60 Value Destroyed (392) 392 Prototype IDs (4) 80 Alien Tech Used (0) 0 Bonus (809) 809 TOTAL SCORE: 5641 Bonus ------- Pacifist 200 Follower Combat Kills 109 Entered DSFs 500 Cogmind --------- Core Integrity 0/1000 Matter 193/300 Energy 98/100 System Corruption 3% Temperature Cool (0) Movement Core (50) Location -5/Upper Caves Parts ------- > --- POWER (3) -------- (None) > --- PROPULSION (6) --- (None) > --- UTILITY (5) ------ (None) > --- WEAPON (3) ------- (None) > --- INVENTORY (5) ---- Fission Core Large Storage Unit Assault Rifle Peak State ------------ > --- POWER ------------ Enhanced Nuclear Core Fission Core > --- PROPULSION ------- Flight Unit Flight Unit Improved VTOL Module > --- UTILITY ---------- Advanced Visual Processing Unit Signal Interpreter Hacking Suite > --- WEAPON ----------- Assault Cannon > --- INVENTORY -------- Large Storage Unit Assault Rifle [Rating: 26] Favorites ----------- Power Light Ion Engine Engine Light Ion Engine Power Core Enhanced Nuclear Core Propulsion Aluminum Leg Leg Aluminum Leg Wheel Compact Wheel Flight Unit Flight Unit Utility Large Storage Unit Device ECM Suite Storage Large Storage Unit Processor Signal Interpreter Hackware Hacking Suite Protection Light Armor Plating Weapon Assault Rifle Energy Gun Medium Laser Ballistic Gun Assault Rifle Ballistic Cannon Assault Cannon Launcher Grenade Launcher Build | -11 -10 -9 -9 -8 -7 -6 -6 -5 -5 ------- Run | Jun Mat Mat Min Mat Fac Fac DSF Fac Upp Slots Evolved 10 | . . 2 . 2 2 2 . 2 . Power 2 | . . . . . 1 . . 1 . Propulsion 4 | . . . . 2 . 1 . 1 . Utility 3 | . . 1 . . 1 1 . . . Weapon 1 | . . 1 . . . . . . . Parts Attached 36 | 8 2 10 5 1 5 1 1 3 . Power 9 | 2 . 2 1 . 1 1 1 1 . Engine 5 | 2 . 2 1 . . . . . . Core 4 | . . . . . 1 1 1 1 . Reactor . | . . . . . . . . . . Propulsion 7 | 2 . 1 3 1 . . . . . Treads . | . . . . . . . . . . Leg 2 | 2 . . . . . . . . . Wheel 2 | . . 1 1 . . . . . . Hover . | . . . . . . . . . . Flight 3 | . . . 2 1 . . . . . Utility 10 | 1 2 3 1 . 2 . . 1 . Device 1 | . . 1 . . . . . . . Storage 4 | 1 1 1 . . . . . 1 . Processor 2 | . . 1 . . 1 . . . . Hackware 1 | . . . . . 1 . . . . Protection 2 | . 1 . 1 . . . . . . Artifact . | . . . . . . . . . . Weapon 10 | 3 . 4 . . 2 . . 1 . Energy Gun 2 | 1 . 1 . . . . . . . Energy Cannon . | . . . . . . . . . . Ballistic Gun 5 | 2 . 2 . . . . . 1 . Ballistic Cannon 2 | . . . . . 2 . . . . Launcher 1 | . . 1 . . . . . . . Special Weapon . | . . . . . . . . . . Impact Weapon . | . . . . . . . . . . Slashing Weapon . | . . . . . . . . . . Piercing Weapon . | . . . . . . . . . . Special Melee Weapon . | . . . . . . . . . . Unidentified Prototypes 4 | . . 2 . 1 1 . . . . Parts Lost 14 | . . 7 . . 1 . 6 . . Power 3 | . . 1 . . 1 . 1 . . Propulsion 4 | . . 1 . . . . 3 . . Utility 3 | . . 2 . . . . 1 . . Weapon 4 | . . 3 . . . . 1 . . Highest Loss Streak 6 | . . 3 . . 1 . 6 . . To Critical Strikes . | . . . . . . . . . . Average Slot Usage (%) 71 | . 90 90 86 48 64 53 39 1 . Engine 8 | . 14 9 11 9 4 . . . . Leg 10 | . 28 21 . . . . . . . Wheel 4 | . . . 20 . . . . . . Flight 4 | . . . 1 21 23 20 12 . . Storage 8 | . 16 11 10 . . . . . . Processor 6 | . . 4 11 9 15 13 9 . . Hackware 1 | . . . . . 6 6 6 . . Protection 5 | . 2 9 10 . . . . . . Energy Gun 7 | . 14 16 . . . . . . . Ballistic Gun 12 | . 14 15 21 9 5 . . . . Ballistic Cannon 1 | . . . . . 5 6 5 . . Naked Turns 140 | . . . . . . . . 114 26 Heaviest Build 37 | 12 17 37 35 5 13 13 13 10 . Greatest Support 32 | 20 20 20 32 13 13 13 13 3 3 Greatest Overweight (x) 3 | 3 . 2 1 . . . 2 3 . Average Overweight (x) . | . . . . . . . . . . Largest Inventory Capacity 15 | 8 8 15 15 5 5 5 5 15 5 Average Capacity 10 | 7 8 14 14 5 5 5 5 5 5 Most Carried 10 | 6 7 10 8 2 3 3 4 3 3 Average Carried 4 | 2 4 7 4 1 1 2 3 2 3 Final Capacity 15 | 8 8 15 5 5 5 5 5 5 5 Final Carried 7 | 5 7 6 1 1 2 3 3 3 3 Class Distribution -------------------- 55% | Mutant 27% | Tank 13% | Sprinter 3% | Gunner Dominant Class ---------------- Mutant | -10/Materials Tank | -9/Materials Mutant | -9/Mines Mutant | -8/Materials Sprinter | -7/Factory Sprinter | -6/Factory Mutant | -6/DSF Mutant | -5/Factory Mutant | -5/Upper Caves Resources | -11 -10 -9 -9 -8 -7 -6 -6 -5 -5 ----------- Run | Jun Mat Mat Min Mat Fac Fac DSF Fac Upp Matter Collected 510 | 243 . 136 131 . . . . . . Remotely . | . . . . . . . . . . Salvage Created 434 | . . 395 15 . . . 24 . . Parts 31 | . . 30 1 . . . . . . Haulers Intercepted . | . . . . . . . . . . Recyclers Shooed 1 | . 1 . . . . . . . . Parts Field Recycled . | . . . . . . . . . . Retrieved Matter . | . . . . . . . . . . Parts Self-Destructed . | . . . . . . . . . . Prevented . | . . . . . . . . . . Kills | -11 -10 -9 -9 -8 -7 -6 -6 -5 -5 ------- Run | Jun Mat Mat Min Mat Fac Fac DSF Fac Upp Combat Hostiles Destroyed 11 | . . 10 1 . . . . . . Guns 7 | . . 6 1 . . . . . . AOE 4 | . . 4 . . . . . . . Classes Destroyed 4 | . . 4 . . . . . . . Watcher 1 | . . 1 . . . . . . . Swarmer 3 | . . 2 1 . . . . . . Grunt 4 | . . 4 . . . . . . . Sentry 4 | . . 4 . . . . . . . Best Kill Streak 6 | . . 6 1 . . . . . . Combat Bots Only 6 | . . 6 1 . . . . . . Max Kills in Single Turn 2 | . . 2 1 . . . . . . Gunslinging 1 | . . 1 . . . . . . . Exploded 2 | . . 2 . . . . . . . Melee . | . . . . . . . . . . Uniques/NPCs Destroyed . | . . . . . . . . . . Combat | -11 -10 -9 -9 -8 -7 -6 -6 -5 -5 -------- Run | Jun Mat Mat Min Mat Fac Fac DSF Fac Upp Damage Taken 2637 | . . 781 74 28 99 . 650 905 100 Core 1428 | . . 89 31 . . . 303 905 100 Absorbed by Shields 66 | . . . . . . . 27 39 . Core Remaining (%) 89 | 100 100 . 70 100 100 . 64 . . Volleys Fired 29 | . . 22 2 . . . 5 . . Largest 3 | . . 3 2 . . . 1 . . Hottest 115 | . . 115 40 . . . 44 . . Shots Fired 71 | . . 62 4 . . . 5 . . Gun 61 | . . 57 4 . . . . . . Cannon 5 | . . . . . . . 5 . . Launcher 5 | . . 5 . . . . . . . Special . | . . . . . . . . . . Kinetic 32 | . . 23 4 . . . 5 . . Thermal 22 | . . 22 . . . . . . . Explosive 5 | . . 5 . . . . . . . Electromagnetic 12 | . . 12 . . . . . . . Robot Hit Streak 6 | . . 6 1 . . . 5 . . Robot Miss Streak 7 | . . 7 3 . . . . . . Penetration Max . | . . . . . . . . . . Secondary Targets 2 | . . 1 1 . . . . . . Max Gunslinging Chain 1 | . . 1 1 . . . . . . Shots Hit Robots 38 | . . 32 1 . . . 5 . . Core Hits 24 | . . 19 1 . . . 1 3 . Critical Kills . | . . . . . . . . . . Critical Parts Destroyed . | . . . . . . . . . . Critical Strikes 3 | . . 3 . . . . . . . Burn 3 | . . 3 . . . . . . . Melee Attacks . | . . . . . . . . . . Impact . | . . . . . . . . . . Slashing . | . . . . . . . . . . Piercing . | . . . . . . . . . . Sneak Attacks . | . . . . . . . . . . Combat Hostiles . | . . . . . . . . . . Follow-up Attacks . | . . . . . . . . . . Damage Inflicted 818 | . . 656 25 . . . 110 27 . Guns 445 | . . 420 25 . . . . . . Cannons 110 | . . . . . . . 110 . . Explosions 227 | . . 227 . . . . . . . Melee . | . . . . . . . . . . Ramming 36 | . . 9 . . . . . 27 . Kinetic 262 | . . 127 25 . . . 110 . . Thermal 183 | . . 183 . . . . . . . Explosive 195 | . . 195 . . . . . . . Electromagnetic 142 | . . 142 . . . . . . . Impact . | . . . . . . . . . . Slashing . | . . . . . . . . . . Piercing . | . . . . . . . . . . Highest Corruption 3 | . . . . . . . 3 3 3 Average Corruption 2 | . . . . . . . 1 2 3 Corruption Purged . | . . . . . . . . . . Corruption Blocked . | . . . . . . . . . . Effects 3 | . . . . . . . 2 1 . Matter Fused 1 | . . . . . . . 1 . . Energy Discharges 1 | . . . . . . . . 1 . Data Loss (minor) 1 | . . . . . . . 1 . . Overload Shots . | . . . . . . . . . . Overflow Damage 19 | . . 19 . . . . . . . Projectiles . | . . . . . . . . . . Explosions 19 | . . 19 . . . . . . . Melee . | . . . . . . . . . . Knockbacks 6 | . . 1 . . . . 4 1 . Impact 2 | . . 1 . . . . . 1 . Kinetic 4 | . . . . . . . 4 . . Secondary . | . . . . . . . . . . Self-Inflicted Damage 39 | . . 26 . . . . . 13 . Shots 2 | . . 2 . . . . . . . Rammed 9 | . . . 1 . . . . 8 . Targets Rammed 11 | . 1 1 1 . . . . 8 . Kicked 2 | . 1 1 . . . . . . . Crushed . | . . . . . . . . . . Highest Temperature 239 | . . 239 . . . . . . . Average Temperature 85 | . . 85 . . . . . . . Received Heat Transfer 276 | . . 222 . . 18 . . 27 9 Siege Activations . | . . . . . . . . . . Robots Corrupted . | . . . . . . . . . . Combat Hostiles . | . . . . . . . . . . Parts Fried . | . . . . . . . . . . Impact Corruptions . | . . . . . . . . . . Robots Melted . | . . . . . . . . . . Combat Hostiles . | . . . . . . . . . . Parts Melted 1 | . . 1 . . . . . . . Heat Transferred 716 | . . 716 . . . . . . . Parts Sabotaged . | . . . . . . . . . . Parts Stolen . | . . . . . . . . . . Parts Stripped . | . . . . . . . . . . Power Chain Reactions 1 | . . 1 . . . . . . . Missiles Intercepted . | . . . . . . . . . . Alert | -11 -10 -9 -9 -8 -7 -6 -6 -5 -5 ------- Run | Jun Mat Mat Min Mat Fac Fac DSF Fac Upp Peak Influence 369 | . 15 369 365 172 157 80 66 73 . Initial 142 | . . 5 54 142 77 76 56 13 . Average 101 | . 10 107 214 145 107 76 54 47 . Maximum Alert Level 1 | . . 1 1 . . . . . . Low Security (%) 81 | 100 100 87 26 100 100 100 100 100 . Level 1 18 | . . 12 73 . . . . . . Level 2 . | . . . . . . . . . . Level 3 . | . . . . . . . . . . Level 4 . | . . . . . . . . . . Level 5 . | . . . . . . . . . . High Security . | . . . . . . . . . . Max Security . | . . . . . . . . . . Squads Dispatched 5 | . . 2 . . . . 1 2 . Investigation 1 | . . 1 . . . . . . . Extermination . | . . . . . . . . . . Reinforcement 4 | . . 1 . . . . 1 2 . Assault . | . . . . . . . . . . Garrison . | . . . . . . . . . . Intercept . | . . . . . . . . . . Searches Triggered . | . . . . . . . . . . Construction Impeded . | . . . . . . . . . . Haulers Reinforced . | . . . . . . . . . . Active Scanning Responses . | . . . . . . . . . . Cargo Convoy Interrupts . | . . . . . . . . . . Stealth | -11 -10 -9 -9 -8 -7 -6 -6 -5 -5 --------- Run | Jun Mat Mat Min Mat Fac Fac DSF Fac Upp Distress Signals . | . . . . . . . . . . Communications Jammed . | . . . . . . . . . . Distress Signals . | . . . . . . . . . . Times Spotted 56 | . 1 17 8 4 6 . 6 10 4 Peak Tracking Total 8 | . 1 6 4 4 6 . 5 8 3 Tactical Retreats 7 | . . 2 1 . 2 . 1 . 1 Traps | -11 -10 -9 -9 -8 -7 -6 -6 -5 -5 ------- Run | Jun Mat Mat Min Mat Fac Fac DSF Fac Upp Traps Triggered 5 | . . 1 . . . . 1 3 . Indirectly . | . . . . . . . . . . Trap Hack Attempts . | . . . . . . . . . . Triggered . | . . . . . . . . . . Disarmed . | . . . . . . . . . . Reprogrammed . | . . . . . . . . . . Reused . | . . . . . . . . . . Traps Extracted . | . . . . . . . . . . Installed . | . . . . . . . . . . Triggered . | . . . . . . . . . . Machines | -11 -10 -9 -9 -8 -7 -6 -6 -5 -5 ---------- Run | Jun Mat Mat Min Mat Fac Fac DSF Fac Upp Machines Disabled 3 | . . 1 1 . . . 1 . . Max in Single Turn 1 | . . 1 . . . . 1 . . Machines Repaired . | . . . . . . . . . . Machines Sabotaged . | . . . . . . . . . . Overloaded Fab Kills . | . . . . . . . . . . Hacking | -11 -10 -9 -9 -8 -7 -6 -6 -5 -5 --------- Run | Jun Mat Mat Min Mat Fac Fac DSF Fac Upp Machines Accessed 1 | . . . . . . 1 . . . Terminals 1 | . . . . . . 1 . . . Fabricators . | . . . . . . . . . . Repair Stations . | . . . . . . . . . . Recycling Units . | . . . . . . . . . . Scanalyzers . | . . . . . . . . . . Garrison Access . | . . . . . . . . . . Total Hacks 1 | . . . . . . 1 . . . Successful 1 | . . . . . . 1 . . . Failed . | . . . . . . . . . . Catastrophic . | . . . . . . . . . . Database Lockouts . | . . . . . . . . . . Manual . | . . . . . . . . . . Terminals 1 | . . . . . . 1 . . . Fabricators . | . . . . . . . . . . Repair Stations . | . . . . . . . . . . Recycling Units . | . . . . . . . . . . Scanalyzers . | . . . . . . . . . . Garrison Access . | . . . . . . . . . . Terminal Hacks 1 | . . . . . . 1 . . . Open DSF 1 | . . . . . . 1 . . . Fabricator Hacks . | . . . . . . . . . . Repair Station Hacks . | . . . . . . . . . . Recycling Unit Hacks . | . . . . . . . . . . Scanalyzer . | . . . . . . . . . . Garrison Access Hacks . | . . . . . . . . . . Unauthorized Hacks . | . . . . . . . . . . Terminals . | . . . . . . . . . . Fabricators . | . . . . . . . . . . Repair Stations . | . . . . . . . . . . Recycling Units . | . . . . . . . . . . Scanalyzers . | . . . . . . . . . . Garrison Access . | . . . . . . . . . . Data Cores Recovered . | . . . . . . . . . . Used . | . . . . . . . . . . Hacking Detections . | . . . . . . . . . . Full Trace Events . | . . . . . . . . . . Feedback Events . | . . . . . . . . . . Feedback Blocked . | . . . . . . . . . . Robot Schematics Acquired . | . . . . . . . . . . Robots Built . | . . . . . . . . . . Authchips . | . . . . . . . . . . Time . | . . . . . . . . . . Total Robot Build Rating . | . . . . . . . . . . Part Schematics Acquired . | . . . . . . . . . . Parts Built . | . . . . . . . . . . Authchips . | . . . . . . . . . . Time . | . . . . . . . . . . Total Part Build Rating . | . . . . . . . . . . Parts Repaired . | . . . . . . . . . . Time . | . . . . . . . . . . Parts Recycled . | . . . . . . . . . . Recycled Matter . | . . . . . . . . . . Retrieved Matter . | . . . . . . . . . . Retrieved Components . | . . . . . . . . . . Parts Scanalyzed . | . . . . . . . . . . Part Schematics Acquired . | . . . . . . . . . . Parts Damaged . | . . . . . . . . . . Bothacking | -11 -10 -9 -9 -8 -7 -6 -6 -5 -5 ------------ Run | Jun Mat Mat Min Mat Fac Fac DSF Fac Upp Used RIF Installer . | . . . . . . . . . . Robots Hacked . | . . . . . . . . . . Non-combat . | . . . . . . . . . . Combat . | . . . . . . . . . . Robot Hacks Applied . | . . . . . . . . . . Relay Couplers Released . | . . . . . . . . . . Fabnet Peak Effective % . | . . . . . . . . . . Robots Rewired . | . . . . . . . . . . Allies Hacked . | . . . . . . . . . . Hacks Repelled . | . . . . . . . . . . Allies | -11 -10 -9 -9 -8 -7 -6 -6 -5 -5 -------- Run | Jun Mat Mat Min Mat Fac Fac DSF Fac Upp Total Allies 3 | . . . 3 . . . . . . Largest Group 3 | . . . 3 . . . . . . Highest-Rated Group 40 | . . . 40 . . . . . . Highest-Rated Ally 16 | . . . 16 . . . . . . Total Orders . | . . . . . . . . . . Ally Attacks 33 | . . . 33 . . . . . . Total Damage 319 | . . . 319 . . . . . . Kills 9 | . . . 9 . . . . . . Allies Corrupted . | . . . . . . . . . . Allies Melted . | . . . . . . . . . . Intel | -11 -10 -9 -9 -8 -7 -6 -6 -5 -5 ------- Run | Jun Mat Mat Min Mat Fac Fac DSF Fac Upp Robot Analysis Total . | . . . . . . . . . . Derelict Logs Recovered 2 | . . . 2 . . . . . . Drone Launches . | . . . . . . . . . . Drone Recoveries . | . . . . . . . . . . Exploration | -11 -10 -9 -9 -8 -7 -6 -6 -5 -5 ------------- Run | Jun Mat Mat Min Mat Fac Fac DSF Fac Upp Turns Passed 1415 | 85 171 451 276 30 132 32 84 128 26 Spaces Moved 1465 | 49 135 198 228 80 372 91 63 197 52 Core 274 | 16 . . . . . . 9 197 52 Treads . | . . . . . . . . . . Legs 357 | 33 135 189 . . . . . . . Wheels 220 | . . 9 211 . . . . . . Hover . | . . . . . . . . . . Flight 614 | . . . 17 80 372 91 54 . . Fastest Speed 32 | 50 120 115 37 32 32 32 32 50 50 Average Speed 81 | 130 120 181 109 35 32 32 94 53 50 Slowest Speed 200 | 200 120 190 115 37 32 32 175 200 50 Overloaded Moves . | . . . . . . . . . . Propulsion Burnouts . | . . . . . . . . . . Robots Hopped 5 | . . . 1 . 3 1 . . . Cave-ins Triggered . | . . . . . . . . . . Exploration Rate (%) 24 | 4 32 22 52 15 16 4 76 8 14 Regions Visited 9 Branch Regions 2 Pre-discovered Areas . | . . . . . . . . . . Known Exits Taken 5 | . . 1 1 1 1 1 . . . Unknown Exits Taken 3 | 1 1 . . . . . . 1 . Scrap Searched . | . . . . . . . . . . Spaces Dug . | . . . . . . . . . . Terrain Destroyed 39 | . . 39 . . . . . . . Melee . | . . . . . . . . . . Projectile . | . . . . . . . . . . AOE 39 | . . 39 . . . . . . . Terrain Rammed . | . . . . . . . . . . Walls Destroyed . | . . . . . . . . . . Machines Disabled . | . . . . . . . . . . Actions | -11 -10 -9 -9 -8 -7 -6 -6 -5 -5 --------- Run | Jun Mat Mat Min Mat Fac Fac DSF Fac Upp Total 1623 | 70 145 242 255 81 382 92 82 222 52 Wait 5 | . . . 2 . 3 . . . . Move 1446 | 48 134 197 225 79 365 88 62 196 52 Hop 5 | . . . 1 . 3 1 . . . Pick Up 35 | 12 5 8 4 1 4 1 . . . Fast Attach . | . . . . . . . . . . Attach 31 | 7 2 9 2 1 5 1 1 3 . Detach 17 | 1 1 2 4 . 2 1 1 5 . Swap 5 | 1 . 1 3 . . . . . . Drop 16 | 1 2 2 11 . . . . . . Fire 29 | . . 22 2 . . . 5 . . Melee . | . . . . . . . . . . Ram 9 | . . . 1 . . . . 8 . Kick 2 | . 1 1 . . . . . . . Crush . | . . . . . . . . . . Escape Stasis 23 | . . . . . . . 13 10 . Rewire . | . . . . . . . . . . Trap . | . . . . . . . . . . Miscellaneous . | . . . . . . . . . . Route ------- -11/Junkyard -10/Materials (discovered 2 exits: *Mat / [*Min]) -9/Materials -9/Mines -8/Materials -7/Factory (discovered 2 exits: *Fac / [*Low]) -6/Factory -6/DSF -5/Factory -5/Upper Caves History --------- Turn | Location | Event 14 | -11/Junkyard | Discovered new exit (range 16) 86 | -11/Junkyard | Entered Materials 153 | -10/Materials | Discovered new exit (range 12) 202 | -10/Materials | Discovered new exit (range 15) 257 | -10/Materials | Entered another Materials area 257 | -9/Materials | Evolved 2 slots: Utility x1, Weapon x1 565 | -9/Materials | Build established: Tank 683 | -9/Materials | Discovered new exit (range 16) 707 | -9/Materials | Identified exit to Mines 708 | -9/Materials | Entered Mines 713 | -9/Mines | Assisted by bots powering up and referring to "LRC-V3" 738 | -9/Mines | Lost 3 parts (1n1u1w) 827 | -9/Mines | Learned 2 Materials zone layouts 843 | -9/Mines | Discovered new exit (range 8) 888 | -9/Mines | Learned Materials trap positions 984 | -9/Mines | Identified exit to Materials 984 | -9/Mines | Entered Materials 984 | -8/Materials | Evolved 2 slots: Propulsion x2 986 | -8/Materials | Loaded intel: 20 trap records 999 | -8/Materials | Build established: Mutant 1011 | -8/Materials | Discovered new exit (range 10) 1014 | -8/Materials | Identified exit to Factory 1014 | -8/Materials | Entered Factory 1014 | -7/Factory | Evolved 2 slots: Power x1, Utility x1 1046 | -7/Factory | Discovered new exit (range 18) 1143 | -7/Factory | Discovered new exit (range 6) 1146 | -7/Factory | Identified exit to Factory 1146 | -7/Factory | Entered another Factory area 1146 | -6/Factory | Evolved 2 slots: Propulsion x1, Utility x1 1177 | -6/Factory | Identified exit to DSF 1178 | -6/Factory | Entered DSF 1239 | -6/DSF | Additional patrols routed to DSF 1241 | -6/DSF | Discovered new exit (range 20) 1262 | -6/DSF | Entered Factory 1262 | -5/Factory | Evolved 2 slots: Power x1, Propulsion x1 1288 | -5/Factory | Lost 6 parts (1p3n1u1w) 1354 | -5/Factory | Core integrity fell below 50% 1371 | -5/Factory | Core integrity fell below 20% 1383 | -5/Factory | Discovered new exit (range 15) 1390 | -5/Factory | Entered Upper Caves 1411 | -5/Upper Caves | Attracted the attention of an 0b10 checkpoint 1416 | -5/Upper Caves | Destroyed by S-27 Virus with Autogun Last Messages --------------- 01356_ Field strength at 94. 01357_ Field strength at 88. 01358_ Field strength at 82. 01359_ Field strength at 76. 01360_ Field strength at 70. 01361_ Field strength at 64. 01362_ Field strength at 47. 01363_ Field strength at 41. 01364_ Field strength at 30. 01365_ Field strength at 24. 01366_ Field strength at 18. 01366_ Stasis field depleted. 01367_ Penetrated by Slug. 01371_ Slammed into A-15 Conveyor. 01383_ EXIT=FOUND LOCATION=UNKNOWN GOAL=ESCAPE 01394_ Penetrated by Slug. 01411_ Y-64 Sentinel: "INTERCEPTING UNREGISTERED DERELICT." [Achievement: 5k Club] Map ----- +----------------------------------------------------+ | ???????????# ??? ?## ### #????? | | ????????????# ??# ?# ## ## # ##????? | | ????????????# ## ## ## #???????? | | ?????????????# # ####???????? | | ?????????????# #### #??????????? | | ????????????# ## #??????????? | | ????????????# ## ## #?????????? | | ????????????## ????# ##### ### #????????? | | ?????????????????????# #???## #?## #???????? | | ?????????????????????# #????## ##??# #??????? | | ?????????????????????# #?????####???## ###??????? | | ?????????????????????# #########?????? #????????? | | ?????????????????????# #?????? #????????? | | ?????????????#???????######## #?????? ????????? | | ????????????## ????????###### #???? ? ??????? | | ??????????? ???????# ## #??# ??????? | | ???????????? ?????## ### ????? | | ??????????? ???## ????? | | ??????????? ### sY ????? | | ?????????? # ????? | | ??????????? #?$? ?????? | | ??????????????# #### ###???????????? | | ?????????????????????## ###???????????? | | ??????????????????????# ?????????? | | ??????????????????????## ## ????????? | | ???????????????????????##@ ##?### ????????? | | ??????????????????????### ##?????# ????????? | | ??????????????????????# #??????? #????????? | | ?????????????????????# #???????? #????????? | | ?????????????????????# ## #??????????????????? | | ?????????????????????# #?# #??????????????????? | | ?????????????????????##??## #??????????????????? | | ???????????????????????????# #??????????????????? | | ????????????????????????????###??????????????????? | | ?????????????????????????????????????????????????? | | ?????????????????????????????????????????????????? | | ?????????????????????????????????????????????????? | | ?????????????????????????????????????????????????? | | ?????????????????????????????????????????????????? | | ?????????????????????????????????????????????????? | | ?????????????????????????????????????????????????? | | ?????????????????????????????????????????????????? | | ?????????????????????????????????????????????????? | | ?????????????????????????????????????????????????? | | ?????????????????????????????????????????????????? | | ?????????????????????????????????????????????????? | | ?????????????????????????????????????????????????? | | ?????????????????????????????????????????????????? | | ?????????????????????????????????????????????????? | | | +----------------------------------------------------+ Best States ------------- Heat Dissipation 40 Energy Generation 18 Energy Capacity 310 Matter Stores 300 Matter Capacity 300 Sight Range 20 Terrain Scan Density 10 ECM Strength 1 Armor Coverage 150 Evasion (%) 63 Offensive Hacking 10 Item Schematics ----------------- None Robot Schematics ------------------ None Fabricated ------------ Nothing Alien Tech Used ----------------- None Achievements -------------- 5k Club Made in Tau Ceti IV Challenges ------------ None Game ------ Seed ModifiedBurstRegenerator Manual? 0 Play Time 00:28:07 Cumulative 2.3 hours Start 2023.03.09 @ 17:15:14 End 2023.03.09 @ 19:57:18 Sessions 3 Manual Loads 0 Difficulty Rogue Special Mode None Game No. 7 Rogue 7 Adventurer 0 Explorer 0 Win Type - Total 0 Types 0/0/0/0/0/0/0/0/0 Lore% 4 Gallery% 6 Achievement% 6 Wizard Run 0 Options --------- ASCII 0 Keyboard 0 Movement Vi Keybinds 0 Fullscreen 1 Font 18/SmallcapsGlow Map View 76x50 Tactical HUD 1 Map Filters NONE Filters NONE Steam 1 RUN: 8be64e62-2ce0-49a4-8127-548595d46248